bitfinex-derivatives/quotes_ETHF0:USTF0_20250905
["timestamp","ask_amount","ask_price","bid_price","bid_amount"]
[1757087111915,3.2078,4296.7,4296.6,1.4708]
[1757087112109,3.2078,4297.2,4297.0,0.5768]
[1757087112311,3.2078,4297.2,4297.1,1.4708]
[1757087112514,3.2078,4297.7,4297.1,1.4708]
[1757087112709,0.253,4297.6,4297.1,1.4708]
[1757087112913,0.253,4297.6,4297.0,0.5768]
[1757087113115,0.253,4297.6,4297.1,1.4708]
[1757087113611,3.2078,4297.2,4296.4,1.4708]
[1757087113805,3.2078,4296.7,4296.4,1.4708]
[1757087114006,0.253,4296.6,4295.9,4.6786]
[1757087114207,0.253,4296.6,4295.9,1.4708]
[1757087114419,3.2078,4296.2,4295.9,1.4708]
[1757087114610,0.253,4296.1,4295.9,1.4708]
[1757087115014,0.253,4296.1,4295.3,3.2078]
[1757087115216,3.2078,4295.7,4294.7,1.4708]
[1757087115414,3.2078,4294.8,4294.7,1.4708]
[1757087115614,3.4608,4294.8,4294.7,1.4708]
[1757087115921,3.4608,4294.8,4294.6,1.4708]
[1757087116115,3.4608,4294.8,4294.0,2.0476]
[1757087116321,3.2078,4294.1,4294.0,2.0476]
[1757087116519,3.4608,4294.1,4294.0,2.0476]
[1757087117423,3.4608,4294.1,4293.0,0.5768]
[1757087117720,3.4608,4294.1,4294.0,0.5768]
[1757087118020,0.252,4294.1,4294.0,2.0476]
[1757087118611,3.2078,4294.6,4294.5,0.5961]
[1757087118819,3.4598,4294.6,4294.5,2.0811]
[1757087119019,3.4598,4294.6,4294.0,0.5768]
[1757087119419,3.4598,4294.6,4294.1,1.485]
[1757087119614,3.2078,4294.6,4294.5,0.5961]
[1757087119921,3.4608,4294.6,4294.2,1.485]
[1757087120419,3.4608,4294.6,4294.1,0.00102813]
[1757087120825,3.4608,4294.6,4294.2,1.485]
[1757087121525,3.4608,4294.6,4294.1,0.00102813]
[1757087122227,3.4608,4294.6,4294.5,2.0811]
[1757087122827,0.0024,4294.5,4294.1,0.00102813]
[1757087123026,0.253,4294.4,4294.1,1.48602813]
[1757087123221,0.2554,4294.4,4294.1,1.48602813]
[1757087123424,0.2554,4294.4,4294.1,0.00102813]
[1757087123620,0.253,4294.4,4294.1,1.48602813]
[1757087123825,3.2078,4294.6,4294.5,0.5961]
[1757087124021,0.252,4294.6,4294.5,0.5961]
[1757087124226,3.2078,4295.1,4295.0,0.5961]
[1757087124629,3.4598,4295.1,4295.0,2.0811]
[1757087124826,3.4598,4295.1,4294.5,0.5961]
[1757087125026,3.4598,4295.1,4295.0,2.0811]
[1757087125236,4.12824357,4295.1,4295.0,2.0811]
[1757087125538,3.4598,4295.1,4295.0,2.0811]
[1757087125930,3.4608,4295.1,4295.0,2.0811]
[1757087126130,4.1292348,4295.1,4295.0,2.0811]
[1757087126429,4.1292348,4295.1,4294.5,2.0811]
[1757087126732,0.6684348,4295.0,4294.6,1.485]
[1757087126931,0.252,4294.9,4294.5,0.5961]
[1757087127138,0.6684348,4294.8,4294.5,0.5961]
[1757087127331,0.9204348,4294.7,4294.6,1.485]
[1757087127833,0.6684348,4294.7,4294.6,5.485]
[1757087128035,1.66905154,4295.2,4295.0,0.5961]
[1757087128229,1.9689998,4295.2,4295.1,1.485]
[1757087128433,1.9689998,4295.2,4295.1,4.63110253]
[1757087128630,1.64771663,4295.3,4295.1,4.0]
[1757087128940,0.252,4295.3,4294.6,0.252]
[1757087129334,1.64771663,4294.9,4294.6,0.252]
[1757087129741,1.64771663,4295.1,4294.6,0.252]
[1757087130047,1.64771663,4295.0,4294.6,0.252]
[1757087130249,1.4293,4294.9,4294.6,0.252]
[1757087130433,3.07701663,4294.9,4294.7,1.80812018]
[1757087130738,1.64771663,4295.0,4294.8,1.80812018]
[1757087130942,1.64771663,4295.0,4294.9,1.80812018]
[1757087131237,1.6813,4295.4,4294.9,1.80812018]
[1757087131437,1.6813,4295.4,4294.1,0.00102813]
[1757087131438,1.4293,4294.9,4294.1,0.00102813]
[1757087131643,1.4293,4294.2,4294.1,0.00102813]
[1757087131843,1.9689998,4294.3,4294.2,1.485]
[1757087132043,1.9689998,4294.4,4294.2,1.485]
[1757087132242,1.9689998,4294.4,4294.1,0.00102813]
[1757087132243,1.9689998,4294.5,4294.4,1.485]
[1757087132438,0.252,4295.1,4294.4,1.485]
[1757087132439,1.9689998,4294.7,4294.4,1.485]
[1757087132739,1.9689998,4294.7,4294.3,3.2078]
[1757087132740,3.63242882,4294.9,4294.6,1.485]
[1757087133040,1.66342902,4294.9,4294.5,0.5961]
[1757087133344,1.66342902,4294.9,4294.6,1.485]
[1757087133537,1.66342902,4294.9,4294.5,0.5961]
[1757087133737,1.66342902,4294.9,4294.6,1.485]
[1757087133938,1.66342902,4294.9,4294.5,0.5961]
[1757087134140,1.66342902,4294.9,4294.6,1.485]
[1757087134343,1.66342902,4294.8,4294.5,4.5961]
[1757087134551,1.66342902,4294.8,4294.6,1.485]
[1757087134848,1.66342902,4295.2,4295.0,0.5961]
[1757087135046,1.66342902,4295.2,4295.1,1.485]
[1757087135236,1.9689998,4295.7,4294.8,3.4598]
[1757087135549,0.8612998,4296.8,4295.7,1.04748]
[1757087135737,1.4293,4296.9,4296.6,3.2078]
[1757087135935,1.4293,4297.4,4296.6,3.2078]
[1757087136141,0.6112,4297.5,4297.1,3.2078]
[1757087136351,1.4293,4298.9,4297.2,1.29911]
[1757087136547,1.4293,4298.9,4298.0,3.2078]
[1757087136745,1.4293,4298.9,4296.4,2.96826411]
[1757087136746,0.6112,4298.5,4298.1,0.28579461]
[1757087136951,1.4293,4298.4,4298.2,0.28579461]
[1757087137147,1.4293,4298.4,4298.3,0.28567664]
[1757087137745,0.6112,4298.5,4298.3,0.28567664]
[1757087137940,0.6112,4298.5,4298.1,3.2078]
[1757087137941,2.0405,4299.0,4298.4,4.28567664]
[1757087138137,2.0405,4299.0,4298.5,0.28567664]
[1757087138138,1.4293,4298.9,4298.5,0.28567664]
[1757087138341,1.4293,4298.9,4298.6,0.28567664]
[1757087138542,0.6112,4299.0,4298.7,0.28567664]
[1757087138738,1.4293,4298.9,4298.8,0.28567664]
[1757087140046,2.02180586,4298.9,4298.8,0.28567664]
[1757087141245,2.27380586,4298.9,4298.8,0.28567664]
[1757087141853,2.27380586,4298.9,4296.9,1.04717]
[1757087141854,0.6112,4298.5,4297.4,3.4598]
[1757087142049,1.4293,4298.3,4297.4,3.4598]
[1757087142250,1.4293,4298.1,4297.4,3.4598]
[1757087142554,2.0405,4297.5,4297.4,3.4598]
[1757087143157,2.0405,4297.5,4297.4,0.252]
[1757087143454,0.6112,4297.0,4296.7,0.252]
[1757087143751,0.6112,4297.0,4296.5,0.252]
[1757087143942,1.4293,4296.9,4296.3,3.2078]
[1757087144143,1.4293,4296.9,4295.2,1.04758]
[1757087144144,1.4293,4296.4,4295.7,3.4598]
[1757087144750,0.6112,4296.5,4295.7,3.2078]
[1757087145057,0.6112,4296.0,4295.1,3.2078]
[1757087145351,1.4293,4295.9,4295.1,3.4598]
[1757087146352,1.4293,4295.7,4295.1,3.4598]
[1757087147550,0.6112,4295.5,4295.1,3.2078]
[1757087147854,0.6112,4295.5,4294.4,0.2857]
[1757087147855,1.4293,4295.4,4294.6,3.2078]
[1757087148857,0.59204369,4295.3,4294.6,3.2078]
[1757087149049,0.6112,4295.5,4294.1,0.00102813]
[1757087149050,0.5993,4295.0,4294.1,3.20882813]
[1757087149348,2.03123529,4294.9,4294.1,3.20882813]
[1757087149548,0.59223529,4294.8,4294.1,3.20882813]
[1757087149748,1.439,4294.4,4294.1,3.20882813]
[1757087149945,0.5993,4294.5,4294.1,3.20882813]
[1757087150350,1.439,4294.4,4294.1,3.20882813]
[1757087150949,0.5993,4294.5,4294.1,3.20882813]
[1757087151149,1.439,4294.4,4294.1,3.20882813]
[1757087151557,0.5993,4294.5,4294.1,3.20882813]
[1757087151752,1.439,4294.3,4294.1,3.20882813]
[1757087151955,0.5993,4294.5,4294.1,3.20882813]
[1757087152254,0.59244955,4294.4,4294.1,3.20882813]
[1757087152445,1.439,4294.2,4294.1,3.20882813]
[1757087153054,2.03153336,4294.2,4294.1,3.20882813]
[1757087154256,1.439,4294.2,4294.1,3.20882813]
[1757087155161,1.439,4294.4,4294.1,3.20882813]
[1757087155955,0.5993,4294.5,4294.1,3.20882813]
[1757087157049,1.439,4294.4,4294.1,0.00102813]
[1757087157656,0.5993,4294.5,4294.1,0.00102813]
[1757087157954,1.439,4294.4,4294.1,0.00102813]
[1757087158152,0.5993,4294.5,4294.1,0.00102813]
[1757087159261,1.439,4294.4,4294.1,0.00102813]
[1757087161561,3.8071,4294.5,4294.1,0.00102813]
[1757087161755,1.439,4294.4,4294.1,0.00102813]
[1757087161961,3.8071,4294.5,4294.1,0.00102813]
[1757087162366,1.439,4294.4,4294.1,0.00102813]
[1757087164160,1.439,4294.2,4294.1,0.00102813]
[1757087164460,1.439,4293.4,4293.1,0.25]
[1757087165751,0.5993,4293.5,4293.1,0.25]
[1757087165966,1.439,4293.4,4293.1,0.25]
[1757087166364,0.5993,4293.5,4293.1,0.25]
[1757087166659,2.0383,4293.5,4293.1,0.25]
[1757087166961,1.439,4293.9,4293.3,0.3019]
[1757087167161,1.439,4293.9,4293.5,3.2078]
[1757087167364,1.439,4293.9,4293.5,3.5097]
[1757087167861,1.439,4293.9,4293.6,0.3019]
[1757087168161,0.5993,4294.0,4293.5,3.4578]
[1757087168458,0.5993,4293.5,4293.3,0.25]
[1757087168660,1.439,4293.4,4293.3,0.25]
[1757087168859,2.0383,4293.0,4292.4,3.2078]
[1757087169458,0.8493,4293.5,4292.7,0.25]
[1757087169660,1.439,4293.4,4293.1,3.2078]
[1757087170162,0.5993,4293.5,4293.1,3.2078]
[1757087170364,1.439,4293.4,4293.1,3.2078]
[1757087170566,0.5993,4293.5,4293.1,3.2078]
[1757087171365,1.439,4293.4,4293.1,3.2078]
[1757087171566,0.5993,4293.5,4293.1,3.2078]
[1757087171764,1.439,4293.4,4293.1,3.4578]
[1757087171965,1.439,4293.4,4293.1,3.7597]
[1757087172155,1.439,4293.9,4293.2,0.3019]
[1757087172358,1.439,4293.9,4293.1,7.87704]
[1757087172359,1.439,4294.4,4293.7,0.3019]
[1757087172560,0.5993,4294.0,4293.6,3.2078]
[1757087172771,1.439,4293.9,4293.6,3.2078]
[1757087172960,0.5993,4294.0,4293.2,0.25]
[1757087172961,1.439,4293.4,4293.2,0.25]
[1757087173365,1.439,4293.4,4293.3,3.2078]
[1757087175867,1.439,4293.4,4293.1,0.25]
[1757087176673,1.439,4293.4,4293.2,3.2078]
[1757087177066,0.5993,4293.5,4293.2,3.2078]
[1757087177261,1.439,4293.4,4293.2,3.2078]
[1757087177466,0.5993,4293.5,4293.2,3.2078]
[1757087178166,1.4635,4293.4,4293.2,3.2078]
[1757087178776,3.2078,4294.2,4293.3,0.2491]
[1757087178978,3.2078,4294.2,4293.5,0.6683]
[1757087179279,1.4635,4294.3,4293.7,3.2078]
[1757087179576,2.0628,4294.5,4293.8,0.249]
[1757087180270,2.0628,4294.5,4293.8,0.66817]
[1757087180478,2.0628,4294.5,4293.9,0.41916]
[1757087180669,1.4635,4294.4,4293.8,1.89474163]
[1757087181365,2.033,4294.0,4293.9,0.249]
[1757087182179,0.5695,4294.0,4293.7,3.2078]
[1757087182365,1.4635,4293.9,4293.7,3.2078]
[1757087182568,1.4635,4293.4,4293.3,0.249]
[1757087182776,2.033,4293.0,4292.9,0.249]
[1757087183976,2.033,4293.0,4292.9,0.53757501]
[1757087184372,2.033,4293.0,4292.9,0.28857501]
[1757087185371,2.033,4293.0,4292.8,0.17703856]
[1757087185585,2.033,4293.0,4292.9,0.29046743]
[1757087187973,5.2408,4293.0,4292.8,0.17703856]
[1757087189474,5.2408,4293.0,4292.0,0.249]
[1757087189674,0.5695,4292.5,4292.0,0.249]
[1757087189884,1.4635,4291.9,4291.5,3.4568]
[1757087190780,0.5695,4292.0,4291.5,3.4568]
[1757087190973,0.5695,4292.0,4291.5,4.9908]
[1757087191174,0.5695,4292.0,4291.5,4.7418]
[1757087191382,0.5695,4292.0,4291.5,4.9898]
[1757087191682,1.4635,4291.9,4291.5,3.4558]
[1757087191880,1.4635,4291.9,4291.5,4.9898]
[1757087192176,0.5695,4292.0,4291.6,1.534]
[1757087192381,1.4635,4291.9,4291.6,1.534]
[1757087192576,0.5695,4292.0,4291.6,1.534]
[1757087192774,1.4635,4291.9,4291.6,1.534]
[1757087192973,0.5695,4292.0,4291.6,1.534]
[1757087193374,0.5695,4292.0,4291.5,3.4558]
[1757087193582,1.4635,4291.9,4291.5,3.4558]
[1757087193780,0.5695,4292.0,4291.5,3.2078]
[1757087194182,1.4635,4291.9,4291.4,0.248]
[1757087194487,2.033,4291.5,4290.7,1.534]
[1757087194786,0.8175,4291.5,4290.4,3.4558]
[1757087194983,1.4635,4291.4,4290.4,3.4558]
[1757087195179,3.7773,4291.0,4290.4,3.2078]
[1757087195475,3.7773,4291.0,4290.5,1.534]
[1757087195674,1.4635,4290.9,4290.4,3.2078]
[1757087195880,5.2408,4291.0,4290.4,4.7418]
[1757087196076,3.7773,4291.0,4290.4,3.2078]
[1757087196272,2.033,4290.5,4290.4,3.2078]
[1757087196480,1.4635,4290.5,4290.4,3.2078]
[1757087196673,1.4635,4290.5,4289.7,0.00483475]
[1757087196674,0.5695,4290.0,4289.7,0.00483475]
[1757087196877,1.4635,4289.9,4289.7,0.00483475]
[1757087197582,0.5695,4290.0,4289.7,0.00483475]
[1757087198177,1.4635,4289.9,4289.7,0.00483475]
[1757087198380,1.4635,4290.4,4289.7,0.00483475]
[1757087199284,0.248,4290.3,4289.7,0.00483475]
[1757087199886,1.7115,4290.4,4289.7,0.00483475]
[1757087200179,0.5695,4290.0,4289.7,0.00483475]
[1757087200482,1.4635,4289.9,4289.7,0.00483475]
[1757087201183,1.4635,4289.9,4289.8,1.534]
[1757087201383,1.4635,4289.9,4289.7,0.00483475]
[1757087202881,0.5695,4290.0,4289.7,0.00483475]
[1757087203084,0.8175,4290.0,4289.7,0.00483475]
[1757087203486,1.4635,4289.9,4289.7,0.00483475]
[1757087204082,0.8175,4290.0,4289.7,0.00483475]
[1757087204283,1.4635,4289.9,4289.7,0.00483475]
[1757087205287,4.6713,4289.9,4289.7,0.00483475]
[1757087205679,1.4635,4289.8,4289.7,0.00483475]
[1757087208689,1.7105,4289.8,4289.7,0.00483475]
[1757087209783,3.2078,4289.9,4289.8,1.4875]
[1757087210087,1.4359,4289.8,4289.7,0.00483475]
[1757087213591,1.9833,4289.0,4288.9,0.247]
[1757087213787,1.9833,4289.0,4288.3,1.4875]
[1757087213986,1.4359,4288.8,4288.2,0.211]
[1757087214187,0.5474,4288.5,4287.9,1.4875]
[1757087214387,1.4359,4288.4,4287.8,1.4875]
[1757087215682,4.6437,4288.4,4287.8,1.4875]
[1757087215883,4.6437,4288.4,4287.5,0.247]
[1757087216189,4.6437,4288.4,4287.6,0.23321]
[1757087216393,3.2078,4288.4,4287.6,3.44101]
[1757087216887,1.4359,4288.1,4287.8,1.4875]
[1757087217092,3.4548,4288.4,4287.6,3.2078]
[1757087217281,3.4548,4288.4,4287.5,0.247]
[1757087217485,1.4359,4288.2,4287.5,3.68801]
[1757087217696,1.4359,4288.2,4287.5,3.4548]
[1757087217884,0.247,4288.1,4287.5,0.247]
[1757087218191,1.4359,4287.8,4286.9,1.7125]
[1757087218381,1.4359,4287.6,4286.9,1.7125]
[1757087218582,0.5474,4287.5,4286.9,1.7125]
[1757087218782,1.4359,4287.4,4286.9,1.7125]
[1757087218989,0.7944,4287.5,4286.9,0.225]
[1757087219588,0.247,4287.7,4287.1,1.4875]
[1757087219788,1.4359,4287.8,4287.1,1.4875]
[1757087220490,1.4359,4288.2,4287.3,1.4875]
[1757087221393,3.2078,4288.5,4287.7,3.2078]
[1757087221593,3.2078,4288.5,4288.0,0.568]
[1757087221891,0.5474,4289.5,4288.2,3.2078]
[1757087221892,4.6437,4289.1,4288.2,3.2078]
[1757087222085,1.4359,4289.0,4288.3,1.7345]
[1757087222287,1.4359,4289.0,4288.3,0.48017]
[1757087222486,1.4359,4289.0,4288.4,1.4875]
[1757087223102,1.9833,4289.0,4288.4,1.4875]
[1757087223293,1.9833,4289.0,4288.3,0.247]
[1757087224296,2.2303,4289.0,4288.3,1.7345]
[1757087224689,2.2303,4289.0,4288.3,0.247]
[1757087225194,2.2303,4289.0,4288.3,1.7345]
[1757087225501,1.9833,4289.0,4288.3,1.7345]
[1757087225700,2.2303,4289.0,4288.3,0.247]
[1757087226292,2.2303,4289.0,4287.9,1.4875]
[1757087226293,1.4359,4288.4,4287.9,1.4875]
[1757087226493,1.4359,4288.4,4287.8,3.4548]
[1757087226494,1.4359,4288.4,4287.8,4.9423]
[1757087226693,1.4359,4288.9,4288.1,1.4875]
[1757087226901,3.2078,4289.0,4288.4,1.4875]
[1757087227094,3.2078,4289.0,4288.5,0.5395]
[1757087227402,1.4359,4288.9,4288.5,0.5395]
[1757087227598,1.4359,4288.9,4288.6,1.4875]
[1757087227901,1.4359,4288.9,4288.5,0.5395]
[1757087228102,3.2078,4289.0,4288.6,1.4875]
[1757087228400,3.2078,4289.0,4288.7,0.3160996]
[1757087228606,1.4359,4288.9,4288.8,0.3160996]
[1757087232199,1.4359,4288.9,4288.8,1.2949996]
[1757087232200,3.3343,4288.9,4288.8,1.2949996]
[1757087232403,3.3343,4288.9,4288.8,0.3160996]
[1757087232792,1.4359,4288.8,4287.7,3.2078]
[1757087233105,0.246,4288.7,4287.8,0.217]
[1757087233294,0.5474,4288.5,4287.8,0.217]
[1757087233494,1.4359,4288.4,4287.8,0.217]
[1757087233696,1.4359,4288.4,4287.9,1.4875]
[1757087233902,1.9833,4288.5,4287.9,1.4875]
[1757087234802,3.2078,4288.4,4287.8,0.217]
[1757087235005,1.4359,4288.3,4287.8,0.217]
[1757087235504,3.2078,4288.4,4287.2,3.2078]
[1757087235505,1.4359,4287.9,4287.5,0.247]
[1757087235700,4.6437,4287.9,4287.5,0.247]
[1757087236109,0.247,4287.8,4286.8,0.189]
[1757087236408,1.6829,4287.8,4286.8,0.189]
[1757087237997,0.5474,4287.0,4286.1,4.6953]
[1757087238195,1.4598,4286.9,4286.2,0.246]
[1757087240001,1.4598,4286.9,4286.3,1.3554]
[1757087240401,4.6676,4287.3,4286.7,1.3554]
[1757087241003,4.6676,4287.3,4286.9,1.3554]
[1757087241198,0.5769,4289.0,4286.9,1.3554]
[1757087241199,1.4598,4287.7,4287.1,1.3554]
[1757087241400,3.2078,4288.8,4287.7,1.3554]
[1757087241598,1.4598,4288.7,4287.9,1.3554]
[1757087241903,1.4598,4288.4,4287.8,1.6014]
[1757087242407,4.6676,4288.8,4287.8,1.6014]
[1757087242606,4.6676,4288.8,4288.1,3.2078]
[1757087242905,3.2078,4288.8,4288.1,3.2078]
[1757087243506,1.4598,4288.7,4288.1,3.2078]
[1757087244407,1.4598,4288.4,4288.1,3.2078]
[1757087244909,0.5769,4288.5,4288.1,3.2078]
[1757087245104,0.5769,4288.0,4287.8,0.246]
[1757087245312,1.4598,4287.9,4287.8,0.246]
[1757087246104,1.4598,4288.1,4287.9,1.3554]
[1757087246308,1.4598,4288.1,4287.8,0.246]
[1757087246503,2.0367,4288.0,4287.8,0.246]
[1757087246703,1.4598,4287.9,4287.8,0.246]
[1757087247110,3.2078,4288.2,4287.8,1.6014]
[1757087247310,3.2078,4288.2,4287.9,1.3554]
[1757087247703,1.4598,4287.9,4287.8,0.246]
[1757087249504,1.4598,4287.9,4287.2,3.2078]
[1757087249705,1.4598,4287.4,4287.2,3.2078]
[1757087249908,1.4598,4287.4,4287.3,1.3554]
[1757087250108,1.4598,4287.9,4287.3,1.3554]
[1757087250809,3.2078,4288.2,4287.6,1.3554]
[1757087250999,1.4598,4288.6,4287.8,1.3554]
[1757087251200,0.5769,4288.5,4287.9,0.246]
[1757087251612,1.4598,4288.6,4288.0,1.3554]
[1757087252001,1.4598,4288.6,4288.1,1.3554]
[1757087252405,1.4598,4288.6,4288.0,0.5668]
[1757087252602,1.4598,4288.6,4288.1,1.3554]
[1757087252909,1.4598,4288.8,4288.1,1.3554]
[1757087253508,1.4598,4288.8,4287.9,0.246]
[1757087254915,1.4598,4288.8,4287.9,1.6014]
[1757087256005,1.4598,4288.8,4288.1,1.3554]
[1757087256619,1.4598,4288.8,4288.2,3.2078]
[1757087258516,1.4598,4288.8,4288.3,1.3554]
[1757087258709,0.245,4289.2,4288.3,1.3554]
[1757087258918,1.4598,4289.4,4288.5,1.3554]
[1757087259214,1.4598,4289.4,4288.6,1.3554]
[1757087259416,1.4598,4289.4,4288.8,1.3554]
[1757087259714,3.2078,4289.5,4288.7,3.62747]
[1757087259715,4.6676,4289.5,4289.0,0.5668]
[1757087259919,4.6676,4289.5,4289.1,1.3554]
[1757087260217,1.4598,4289.8,4289.2,3.2078]
[1757087260414,1.4598,4289.8,4289.2,4.5632]
[1757087260619,3.2078,4290.1,4289.3,1.77501]
[1757087260814,3.2078,4290.1,4289.5,0.5668]
[1757087261016,3.2078,4290.1,4289.6,1.3554]
[1757087261213,1.4598,4290.7,4289.8,1.77496]
[1757087261415,1.4598,4290.7,4290.1,1.3554]
[1757087262820,1.4598,4290.6,4290.0,0.5668]
[1757087263021,3.2078,4290.8,4289.7,3.2078]
[1757087263213,3.2078,4290.8,4289.7,3.4528]
[1757087263414,0.23309001,4290.7,4289.7,3.4528]
[1757087263614,0.5769,4290.5,4289.7,3.4528]
[1757087263818,1.4598,4290.4,4289.8,1.3554]
[1757087264724,1.4598,4290.4,4289.9,0.245]
[1757087265022,1.4598,4289.9,4289.8,0.245]
[1757087266219,0.5769,4290.5,4289.8,1.6004]
[1757087266423,3.2078,4290.3,4289.8,1.6004]
[1757087266620,1.4598,4290.2,4289.8,0.245]
[1757087266821,3.2078,4290.3,4289.8,0.245]
[1757087267022,1.4598,4289.9,4289.8,0.245]
[1757087267329,1.4598,4289.9,4289.4,0.245]
[1757087268131,2.0367,4289.5,4289.4,0.245]
[1757087268624,1.962,4290.0,4289.4,1.6969]
[1757087269123,1.3851,4290.0,4289.5,0.5736]
[1757087269327,3.2078,4290.3,4289.5,0.5736]
[1757087269532,1.3851,4290.2,4289.4,0.245]
[1757087270122,1.3851,4290.2,4289.4,1.6969]
[1757087270516,1.3851,4290.2,4289.5,0.5736]
[1757087270725,1.3851,4290.2,4289.4,0.245]
[1757087271225,1.3851,4290.2,4289.5,1.4519]
[1757087272121,3.2078,4290.3,4289.7,3.2078]
[1757087272322,3.2078,4290.3,4289.8,1.4519]
[1757087272517,1.3851,4290.2,4289.7,3.2078]
[1757087272929,3.2078,4290.3,4289.7,3.2078]
[1757087273129,1.3851,4290.2,4289.7,3.2078]
[1757087273432,1.3851,4290.4,4289.8,1.4519]
[1757087273627,0.5769,4290.5,4289.9,0.244]
[1757087273832,0.5769,4290.5,4290.0,1.4519]
[1757087274030,3.2078,4290.9,4290.2,3.2078]
[1757087274328,1.3851,4290.8,4290.3,1.4519]
[1757087274534,1.3851,4290.8,4290.2,3.2078]
[1757087274535,3.2078,4290.9,4290.4,0.244]
[1757087274724,0.5655,4290.5,4289.9,1.4519]
[1757087274924,1.3851,4290.4,4290.0,0.245]
[1757087275930,1.3851,4290.8,4290.1,1.4519]
[1757087278722,1.3851,4290.9,4290.2,4.6597]
[1757087279131,1.3851,4290.8,4289.8,1.4519]
[1757087279332,1.3851,4290.8,4289.8,1.68498]
[1757087279538,1.3851,4290.8,4289.9,0.244]
[1757087279734,0.8914,4290.0,4289.9,1.1608]
[1757087279929,2.2765,4290.0,4289.9,2.0999]
[1757087280233,3.1549,4290.0,4289.9,2.0999]
[1757087281031,3.1549,4290.0,4289.9,3.5518]
[1757087281833,0.5655,4290.5,4289.9,2.0999]
[1757087282031,1.7698,4290.5,4290.4,3.3078]
[1757087282336,0.8914,4290.5,4290.4,3.3078]
[1757087282832,2.2765,4290.5,4290.4,3.3078]
[1757087283150,3.7204,4290.5,4289.7,3.2078]
[1757087283433,1.3851,4289.8,4289.7,3.4518]
[1757087284031,1.3851,4289.9,4289.7,0.244]
[1757087284340,1.3851,4289.9,4289.3,1.4519]
[1757087284341,1.61821,4289.9,4289.3,1.4519]
[1757087284634,0.5655,4289.5,4289.3,0.244]
[1757087284825,1.3851,4289.4,4289.3,0.244]
[1757087285733,1.3851,4289.4,4288.7,3.2078]
[1757087285734,1.3851,4289.4,4289.1,0.244]
[1757087286131,0.5655,4289.5,4289.1,0.244]
[1757087286534,1.3851,4289.4,4289.1,0.244]
[1757087287344,3.1549,4289.2,4289.1,0.244]
[1757087287525,3.1549,4288.8,4288.7,3.2078]
[1757087287839,0.5655,4289.0,4287.9,1.4519]
[1757087287840,3.7204,4288.5,4288.4,1.1608]
[1757087288139,3.1549,4289.0,4288.9,3.3078]
[1757087288438,0.8914,4289.0,4288.9,3.3078]
[1757087289337,0.8914,4289.1,4289.0,1.4519]
[1757087289540,0.8914,4289.1,4289.0,3.3078]
[1757087289739,1.7698,4289.1,4289.0,0.9168]
[1757087289931,1.7698,4288.4,4288.3,0.244]
[1757087290126,3.1549,4288.4,4288.3,0.244]
[1757087290332,3.1549,4288.4,4288.3,1.1608]
[1757087291037,2.2765,4288.4,4288.3,3.5518]
[1757087291238,2.2765,4288.4,4288.3,2.0999]
[1757087291239,3.1549,4288.4,4288.3,2.0999]
[1757087292235,3.1549,4288.4,4288.3,1.1608]
[1757087293535,2.2765,4288.4,4288.3,3.5518]
[1757087293735,1.3851,4288.9,4288.3,3.5518]
[1757087293936,3.1549,4288.4,4288.3,1.1608]
[1757087294140,3.1549,4288.4,4288.3,3.5518]
[1757087294429,1.3851,4288.9,4288.3,3.5518]
[1757087294838,2.2765,4288.4,4288.3,3.5518]
[1757087295035,0.5655,4289.0,4288.3,2.0999]
[1757087295235,2.2765,4288.5,4288.4,3.3078]
[1757087297141,0.8914,4288.5,4288.4,3.3078]
[1757087297347,0.5655,4289.0,4288.4,1.8559]
[1757087297645,3.7204,4288.5,4288.1,3.2078]
[1757087297944,3.1549,4288.2,4288.1,3.2078]
[1757087298132,3.1549,4288.2,4288.1,3.4518]
[1757087298339,3.1549,4288.2,4288.1,0.244]
[1757087298642,1.3132,4288.1,4287.5,34.2135]
[1757087298845,3.1431,4288.0,4287.9,0.9525]
[1757087299043,3.1431,4288.0,4287.9,3.5448]
[1757087299242,4.1066,4288.3,4288.2,1.8753]
[1757087299544,6.3509,4288.3,4288.2,1.8753]
[1757087300140,3.1431,4288.0,4287.9,2.622]
[1757087300446,3.1431,4288.0,4287.9,1.1965]
[1757087301142,3.1431,4288.0,4287.9,0.244]
[1757087301347,3.6656,4288.0,4287.9,1.1965]
[1757087301741,3.1431,4288.0,4287.9,3.5448]
[1757087301950,1.3132,4288.2,4288.0,1.4255]
[1757087302144,2.212,4288.2,4288.1,3.3008]
[1757087302347,3.1431,4288.2,4288.1,3.3008]
[1757087302650,1.8299,4288.2,4287.9,0.244]
[1757087302945,3.1431,4288.1,4288.0,0.9525]
[1757087303146,3.1431,4288.1,4288.0,3.3008]
[1757087303342,1.3132,4288.2,4288.1,1.4255]
[1757087303645,6.3509,4288.3,4288.2,0.9525]
[1757087303842,3.6656,4288.0,4287.9,0.244]
[1757087304445,3.6656,4288.0,4287.4,1.4255]
[1757087304641,3.1431,4287.9,4287.8,0.9525]
[1757087304840,3.1431,4287.9,4287.8,3.3008]
[1757087305548,1.3132,4288.2,4287.9,1.8753]
[1757087305842,2.0739,4288.8,4288.7,0.9525]
[1757087306356,3.3871,4288.8,4288.7,0.9525]
[1757087307247,3.1431,4288.8,4288.7,3.3008]
[1757087307546,3.1431,4288.8,4288.7,3.5448]